[Event "*** Titled Tuesday Blitz"]
[Site "Chess.com"]
[Date "2020.04.28"]
[Round "2"]
[White "AryanTari"]
[Black "AleksanderHnydiuk"]
[Result "1-0"]
[WhiteElo "2906"]
[BlackElo "2569"]
[TimeControl "180+1"]
[EndTime "10:19:25 PDT"]
[Termination "AryanTari won by resignation"]

1. e4 {[%clk 0:03:00.9]} 1... e5 {[%clk 0:02:59.4]} 2. Nf3 {[%clk 0:03:00.3]}
2... Nf6 {[%clk 0:02:59.7]} 3. d4 {[%clk 0:02:52.3]} 3... Nxe4 {[%clk
0:02:58.6]} 4. dxe5 {[%clk 0:02:52.3]} 4... d5 {[%clk 0:02:52.4]} 5. Nbd2 {[%clk
0:02:50.2]} 5... Nxd2 {[%clk 0:02:40.2]} 6. Bxd2 {[%clk 0:02:51.1]} 6... Bf5
{[%clk 0:02:35.8]} 7. Nd4 {[%clk 0:02:38.4]} 7... Bg6 {[%clk 0:02:35.2]} 8. h4
{[%clk 0:02:34.3]} 8... h6 {[%clk 0:02:28.9]} 9. Qg4 {[%clk 0:02:26.7]} 9... Nd7
{[%clk 0:02:07.2]} 10. e6 {[%clk 0:02:12.5]} 10... Nf6 {[%clk 0:02:05.1]} 11.
Qe2 {[%clk 0:01:44.1]} 11... Be7 {[%clk 0:01:46.8]} 12. h5 {[%clk 0:01:36.9]}
12... Bh7 {[%clk 0:01:36.1]} 13. exf7+ {[%clk 0:01:13.1]} 13... Kxf7 {[%clk
0:01:37]} 14. Qe6+ {[%clk 0:01:13.5]} 14... Kf8 {[%clk 0:01:36.5]} 15. O-O-O
{[%clk 0:01:05]} 15... c5 {[%clk 0:01:25.6]} 16. Nf5 {[%clk 0:01:02.9]} 16...
Qd7 {[%clk 0:01:09.8]} 17. Qxd7 {[%clk 0:01:00.1]} 17... Nxd7 {[%clk 0:01:10.4]}
18. Nxe7 {[%clk 0:00:49.3]} 18... Kxe7 {[%clk 0:01:11.3]} 19. Bb5 {[%clk
0:00:49.7]} 19... Nf6 {[%clk 0:01:06.1]} 20. f3 {[%clk 0:00:41.2]} 20... Rhd8
{[%clk 0:00:55]} 21. g4 {[%clk 0:00:33.6]} 21... Kf7 {[%clk 0:00:53.4]} 22. Rhe1
{[%clk 0:00:26.4]} 22... a6 {[%clk 0:00:38.9]} 23. Bf1 {[%clk 0:00:26.4]} 23...
b5 {[%clk 0:00:37.3]} 24. Bf4 {[%clk 0:00:23.7]} 24... d4 {[%clk 0:00:34.9]} 25.
Be5 {[%clk 0:00:22.4]} 25... Nd5 {[%clk 0:00:34.4]} 26. c3 {[%clk 0:00:12.1]}
26... Ne3 {[%clk 0:00:33.5]} 27. Rd2 {[%clk 0:00:11.4]} 27... Rac8 {[%clk
0:00:28.3]} 28. Bf4 {[%clk 0:00:09.7]} 28... Nd5 {[%clk 0:00:25.4]} 29. Be5
{[%clk 0:00:10]} 29... Ne3 {[%clk 0:00:24.9]} 30. b3 {[%clk 0:00:08.7]} 30...
Nd5 {[%clk 0:00:19]} 31. c4 {[%clk 0:00:07]} 31... Nc3 {[%clk 0:00:10.9]} 32.
cxb5 {[%clk 0:00:04.8]} 32... axb5 {[%clk 0:00:11.8]} 33. Kb2 {[%clk 0:00:04.5]}
33... Ra8 {[%clk 0:00:10.1]} 34. a3 {[%clk 0:00:05.1]} 34... Nd5 {[%clk
0:00:06.7]} 35. Bxb5 {[%clk 0:00:04.6]} 35... Ne3 {[%clk 0:00:04.8]} 36. Bf4
{[%clk 0:00:04]} 36... Rab8 {[%clk 0:00:04.4]} 37. a4 {[%clk 0:00:03.3]} 37...
Kf6 {[%clk 0:00:02]} 38. Bxe3 {[%clk 0:00:02.9]} 38... dxe3 {[%clk 0:00:02.9]}
39. Rxd8 {[%clk 0:00:03.3]} 39... Rxd8 {[%clk 0:00:03.1]} 40. Rxe3 {[%clk
0:00:04]} 40... Rd2+ {[%clk 0:00:03.1]} 41. Ka3 {[%clk 0:00:04.3]} 41... Rf2
{[%clk 0:00:02.7]} 42. Be2 {[%clk 0:00:02]} 42... Rg2 {[%clk 0:00:02.4]} 43. a5
{[%clk 0:00:02.5]} 43... Rg1 {[%clk 0:00:02.8]} 44. Kb2 {[%clk 0:00:01.9]} 44...
Rb1+ {[%clk 0:00:02.7]} 45. Ka2 {[%clk 0:00:02.6]} 45... Rc1 {[%clk 0:00:02]}
46. a6 {[%clk 0:00:03.1]} 46... Rc2+ {[%clk 0:00:02.1]} 47. Ka3 {[%clk
0:00:03.7]} 47... Rd2 {[%clk 0:00:02.5]} 48. a7 {[%clk 0:00:03.6]} 48... Rd8
{[%clk 0:00:03]} 49. Ka4 {[%clk 0:00:02]} 49... Ra8 {[%clk 0:00:03]} 50. Kb5
{[%clk 0:00:02.7]} 50... Rxa7 {[%clk 0:00:03.4]} 51. Kxc5 {[%clk 0:00:03.4]}
51... Ra5+ {[%clk 0:00:03.4]} 52. Kb4 {[%clk 0:00:03.6]} 52... Ra7 {[%clk
0:00:03.4]} 53. Kc3 {[%clk 0:00:04.2]} 53... Rb7 {[%clk 0:00:03.6]} 54. Bc4
{[%clk 0:00:04.7]} 54... Rc7 {[%clk 0:00:03.8]} 55. b4 {[%clk 0:00:04]} 55...
Rb7 {[%clk 0:00:03.8]} 56. b5 {[%clk 0:00:04.3]} 56... Rc7 {[%clk 0:00:04.1]}
57. Kb4 {[%clk 0:00:04.9]} 57... Rb7 {[%clk 0:00:03.4]} 58. Ra3 {[%clk
0:00:04.4]} 58... Rb8 {[%clk 0:00:03]} 59. Bd5 {[%clk 0:00:04.9]} 59... Ke5
{[%clk 0:00:03.1]} 60. Bc6 {[%clk 0:00:05.5]} 60... Kd4 {[%clk 0:00:03.1]} 61.
Ra7 {[%clk 0:00:05.7]} 61... Bd3 {[%clk 0:00:02.8]} 62. Rd7+ {[%clk 0:00:06.1]}
62... Ke3 {[%clk 0:00:02.7]} 63. Rxg7 {[%clk 0:00:06.6]} 63... Be2 {[%clk
0:00:03.1]} 64. Re7+ {[%clk 0:00:07.1]} 64... Kf2 {[%clk 0:00:03.2]} 65. f4
{[%clk 0:00:07.2]} 65... Kg3 {[%clk 0:00:03.2]} 66. g5 {[%clk 0:00:07.3]} 66...
hxg5 {[%clk 0:00:03.5]} 67. fxg5 {[%clk 0:00:08.2]} 67... Bxh5 {[%clk
0:00:03.9]} 68. g6 {[%clk 0:00:08.6]} 68... Bxg6 {[%clk 0:00:03.9]} 69. Rg7
{[%clk 0:00:08.9]} 69... Kh4 {[%clk 0:00:02.6]} 70. Rxg6 {[%clk 0:00:09.3]} 1-0

[Event "*** Titled Tuesday Blitz"]
[Site "Chess.com"]
[Date "2020.04.28"]
[Round "2"]
[White "Feegus"]
[Black "Danesz22"]
[Result "0-1"]
[WhiteElo "2473"]
[BlackElo "2273"]
[TimeControl "180+1"]
[EndTime "10:19:29 PDT"]
[Termination "Danesz22 won on time"]

1. Nf3 {[%clk 0:02:26.7]} 1... g6 {[%clk 0:02:56.2]} 2. g3 {[%clk 0:02:25.5]}
2... Bg7 {[%clk 0:02:56.1]} 3. Bg2 {[%clk 0:02:24.5]} 3... f5 {[%clk 0:02:55.5]}
4. O-O {[%clk 0:02:24.8]} 4... Nf6 {[%clk 0:02:55.1]} 5. c4 {[%clk 0:02:25]}
5... O-O {[%clk 0:02:55]} 6. Nc3 {[%clk 0:02:24]} 6... d6 {[%clk 0:02:54.9]} 7.
d4 {[%clk 0:02:24.3]} 7... c6 {[%clk 0:02:53.2]} 8. Re1 {[%clk 0:02:23.3]} 8...
Ne4 {[%clk 0:02:47.8]} 9. Qc2 {[%clk 0:02:16.1]} 9... Nxc3 {[%clk 0:02:42.7]}
10. Qxc3 {[%clk 0:02:14.9]} 10... c5 {[%clk 0:02:36.2]} 11. Qd2 {[%clk 0:02:11]}
11... Nc6 {[%clk 0:02:27.8]} 12. d5 {[%clk 0:02:07.7]} 12... Ne5 {[%clk
0:02:16]} 13. Nxe5 {[%clk 0:01:57.5]} 13... dxe5 {[%clk 0:02:14.9]} 14. b4
{[%clk 0:01:49.1]} 14... Qd6 {[%clk 0:02:01.7]} 15. Ba3 {[%clk 0:01:45.1]} 15...
Qa6 {[%clk 0:01:58.2]} 16. Qd3 {[%clk 0:01:24.8]} 16... e4 {[%clk 0:01:56.8]}
17. Qb3 {[%clk 0:01:24.9]} 17... Bd7 {[%clk 0:01:17.3]} 18. b5 {[%clk
0:01:19.1]} 18... Qd6 {[%clk 0:01:15.1]} 19. Bb2 {[%clk 0:01:18.7]} 19... b6
{[%clk 0:01:14.8]} 20. Bxg7 {[%clk 0:01:16.7]} 20... Kxg7 {[%clk 0:01:15.7]} 21.
Qc3+ {[%clk 0:01:17.5]} 21... Qf6 {[%clk 0:01:15.7]} 22. Qe3 {[%clk 0:01:14.8]}
22... Rad8 {[%clk 0:01:11.5]} 23. f3 {[%clk 0:01:14.1]} 23... e5 {[%clk
0:00:54.2]} 24. fxe4 {[%clk 0:01:11.8]} 24... f4 {[%clk 0:00:54.1]} 25. gxf4
{[%clk 0:00:56.1]} 25... exf4 {[%clk 0:00:55]} 26. Qd3 {[%clk 0:00:33.7]} 26...
Qe5 {[%clk 0:00:49.7]} 27. Rf1 {[%clk 0:00:28.6]} 27... g5 {[%clk 0:00:38.3]}
28. a4 {[%clk 0:00:28.6]} 28... Rf7 {[%clk 0:00:34.5]} 29. Ra3 {[%clk
0:00:28.6]} 29... g4 {[%clk 0:00:33.7]} 30. a5 {[%clk 0:00:25.6]} 30... Rdf8
{[%clk 0:00:32.7]} 31. Qc3 {[%clk 0:00:24.1]} 31... Re8 {[%clk 0:00:21.2]} 32.
axb6 {[%clk 0:00:19.2]} 32... axb6 {[%clk 0:00:20.9]} 33. Qxe5+ {[%clk
0:00:18.2]} 33... Rxe5 {[%clk 0:00:21.8]} 34. Ra6 {[%clk 0:00:18.1]} 34... Rg5
{[%clk 0:00:20.3]} 35. Kf2 {[%clk 0:00:11.8]} 35... h5 {[%clk 0:00:19.8]} 36.
Rxb6 {[%clk 0:00:11.2]} 36... h4 {[%clk 0:00:19.3]} 37. e5 {[%clk 0:00:09.8]}
37... h3 {[%clk 0:00:19.5]} 38. Be4 {[%clk 0:00:09.4]} 38... g3+ {[%clk
0:00:19.6]} 39. hxg3 {[%clk 0:00:09]} 39... fxg3+ {[%clk 0:00:19.7]} 40. Ke1
{[%clk 0:00:09.2]} 40... Rxf1+ {[%clk 0:00:19]} 41. Kxf1 {[%clk 0:00:09.3]}
41... Bf5 {[%clk 0:00:19.1]} 42. Bf3 {[%clk 0:00:08.2]} 42... g2+ {[%clk
0:00:16.9]} 43. Bxg2 {[%clk 0:00:07.5]} 43... hxg2+ {[%clk 0:00:17.1]} 44. Kg1
{[%clk 0:00:07.2]} 44... Be4 {[%clk 0:00:17.7]} 45. Rf6 {[%clk 0:00:06.1]} 45...
Rh5 {[%clk 0:00:17.2]} 46. Kf2 {[%clk 0:00:05.9]} 46... Rh1 {[%clk 0:00:17.1]}
47. Ke3 {[%clk 0:00:04.8]} 47... g1=Q+ {[%clk 0:00:16.7]} 48. Kxe4 {[%clk
0:00:05.7]} 48... Qg4+ {[%clk 0:00:15.2]} 49. Rf4 {[%clk 0:00:05.1]} 49... Qxe2+
{[%clk 0:00:14.7]} 50. Kf5 {[%clk 0:00:04.9]} 50... Qh5+ {[%clk 0:00:14.3]} 51.
Ke6 {[%clk 0:00:05]} 51... Qe8+ {[%clk 0:00:14.9]} 52. Kd6 {[%clk 0:00:04.9]}
52... Rh6+ {[%clk 0:00:11.9]} 53. Kxc5 {[%clk 0:00:05]} 53... Qc8+ {[%clk
0:00:09.9]} 54. Kb4 {[%clk 0:00:04]} 54... Rh1 {[%clk 0:00:07.6]} 55. Rf3 {[%clk
0:00:01]} 55... Rc1 {[%clk 0:00:06.4]} 56. Rb3 {[%clk 0:00:01.9]} 56... Qxc4+
{[%clk 0:00:06.3]} 57. Ka5 {[%clk 0:00:02]} 57... Qxd5 {[%clk 0:00:06.1]} 58.
Rb4 {[%clk 0:00:01.9]} 58... Qa8+ {[%clk 0:00:04.3]} 59. Kb6 {[%clk 0:00:02.2]}
59... Rc8 {[%clk 0:00:04.6]} 60. Rd4 {[%clk 0:00:01.1]} 60... Qb8+ {[%clk
0:00:05.5]} 61. Ka5 {[%clk 0:00:01.1]} 61... Kf7 {[%clk 0:00:06.2]} 62. Kb4
{[%clk 0:00:01.9]} 62... Ke6 {[%clk 0:00:06.4]} 63. Rd7 {[%clk 0:00:02.8]} 63...
Kxd7 {[%clk 0:00:06.1]} 64. b6 {[%clk 0:00:03.3]} 64... Qxb6+ {[%clk 0:00:05.6]}
0-1

[Event "*** Titled Tuesday Blitz"]
[Site "Chess.com"]
[Date "2020.04.28"]
[Round "2"]
[White "Duong57"]
[Black "JosefineHeinemann"]
[Result "1/2-1/2"]
[WhiteElo "2195"]
[BlackElo "2424"]
[TimeControl "180+1"]
[EndTime "10:19:29 PDT"]
[Termination "Game drawn by repetition"]

1. d4 {[%clk 0:03:00.9]} 1... Nf6 {[%clk 0:02:58.9]} 2. c4 {[%clk 0:03:01]} 2...
g6 {[%clk 0:02:59.2]} 3. Nc3 {[%clk 0:03:01.2]} 3... d5 {[%clk 0:02:59.8]} 4.
Bg5 {[%clk 0:03:00.4]} 4... Ne4 {[%clk 0:02:58.3]} 5. Bh4 {[%clk 0:03:00.9]}
5... Nxc3 {[%clk 0:02:57.6]} 6. bxc3 {[%clk 0:03:01.3]} 6... Bg7 {[%clk
0:02:57.7]} 7. e3 {[%clk 0:03:01.2]} 7... O-O {[%clk 0:02:57]} 8. Nf3 {[%clk
0:02:59.4]} 8... dxc4 {[%clk 0:02:57.3]} 9. Bxc4 {[%clk 0:02:59.2]} 9... c5
{[%clk 0:02:58.2]} 10. O-O {[%clk 0:02:58.8]} 10... Nc6 {[%clk 0:02:56.4]} 11.
h3 {[%clk 0:02:40.7]} 11... b6 {[%clk 0:02:49.9]} 12. Qe2 {[%clk 0:02:31.1]}
12... Bb7 {[%clk 0:02:47.4]} 13. Rfd1 {[%clk 0:02:29.5]} 13... Qc7 {[%clk
0:02:46.7]} 14. Rac1 {[%clk 0:02:28.5]} 14... e6 {[%clk 0:02:45]} 15. e4 {[%clk
0:02:19.6]} 15... Rac8 {[%clk 0:02:36.5]} 16. Bg3 {[%clk 0:02:19.4]} 16... Qd8
{[%clk 0:02:33.8]} 17. d5 {[%clk 0:02:10.1]} 17... exd5 {[%clk 0:02:29.1]} 18.
Bxd5 {[%clk 0:02:09.8]} 18... Qe8 {[%clk 0:02:26.6]} 19. Bd6 {[%clk 0:02:08.8]}
19... Rd8 {[%clk 0:02:23.4]} 20. Bxf8 {[%clk 0:02:08.6]} 20... Qxf8 {[%clk
0:02:24.3]} 21. c4 {[%clk 0:02:03.4]} 21... Re8 {[%clk 0:02:20.5]} 22. Qd3
{[%clk 0:01:45.3]} 22... Kh8 {[%clk 0:02:17.4]} 23. Qa3 {[%clk 0:01:44.1]} 23...
Re7 {[%clk 0:02:13.1]} 24. Qa4 {[%clk 0:01:32.6]} 24... Qe8 {[%clk 0:02:07.7]}
25. a3 {[%clk 0:01:29.2]} 25... h6 {[%clk 0:02:06.9]} 26. Re1 {[%clk 0:01:19.6]}
26... Qa8 {[%clk 0:01:29.4]} 27. Rcd1 {[%clk 0:01:15.8]} 27... Kh7 {[%clk
0:01:25.3]} 28. Qc2 {[%clk 0:01:14.4]} 28... Nd4 {[%clk 0:01:20]} 29. Nxd4
{[%clk 0:01:14.2]} 29... Bxd4 {[%clk 0:01:15.9]} 30. Qd3 {[%clk 0:01:04.8]}
30... Qe8 {[%clk 0:01:11.7]} 31. Qf3 {[%clk 0:01:04.1]} 31... a6 {[%clk
0:01:07.1]} 32. Kf1 {[%clk 0:00:50.7]} 32... b5 {[%clk 0:01:02.2]} 33. Qb3
{[%clk 0:00:41.9]} 33... Bc6 {[%clk 0:00:58]} 34. Rd3 {[%clk 0:00:39.3]} 34...
Bxd5 {[%clk 0:00:54.8]} 35. Rxd4 {[%clk 0:00:36.7]} 35... Bxe4 {[%clk
0:00:50.1]} 36. Rdd1 {[%clk 0:00:33.1]} 36... Bxg2+ {[%clk 0:00:46.8]} 37. Kxg2
{[%clk 0:00:32.9]} 37... Rxe1 {[%clk 0:00:47.4]} 38. Rxe1 {[%clk 0:00:32.9]}
38... Qxe1 {[%clk 0:00:47.4]} 39. cxb5 {[%clk 0:00:33.8]} 39... Qe4+ {[%clk
0:00:41.6]} 40. Kg1 {[%clk 0:00:33.7]} 40... c4 {[%clk 0:00:38.7]} 41. Qb4
{[%clk 0:00:26.8]} 41... axb5 {[%clk 0:00:36.3]} 42. Qxb5 {[%clk 0:00:27]} 42...
c3 {[%clk 0:00:32.7]} 43. Qb3 {[%clk 0:00:26.7]} 43... Qf3 {[%clk 0:00:29]} 44.
a4 {[%clk 0:00:24.8]} 44... Kg7 {[%clk 0:00:29.4]} 45. a5 {[%clk 0:00:24.3]}
45... Qd3 {[%clk 0:00:26.2]} 46. a6 {[%clk 0:00:21.5]} 46... Qxa6 {[%clk
0:00:21.1]} 47. Qxc3+ {[%clk 0:00:21]} 47... Kh7 {[%clk 0:00:21.8]} 48. Qc7
{[%clk 0:00:20.2]} 48... Qe6 {[%clk 0:00:21.7]} 49. Kg2 {[%clk 0:00:19.6]} 49...
Kg7 {[%clk 0:00:22.2]} 50. Qc3+ {[%clk 0:00:18.9]} 50... Qf6 {[%clk 0:00:22.3]}
51. Qc7 {[%clk 0:00:19]} 51... Qf5 {[%clk 0:00:22.2]} 52. Qa7 {[%clk 0:00:17.9]}
52... g5 {[%clk 0:00:22.2]} 53. Qd4+ {[%clk 0:00:17.4]} 53... Qf6 {[%clk
0:00:22]} 54. Qd7 {[%clk 0:00:16.9]} 54... h5 {[%clk 0:00:22.2]} 55. Qc7 {[%clk
0:00:16.4]} 55... Kg6 {[%clk 0:00:22.3]} 56. Qc2+ {[%clk 0:00:15.8]} 56... Kh6
{[%clk 0:00:22.3]} 57. Qc7 {[%clk 0:00:15.6]} 57... Qf5 {[%clk 0:00:21.3]} 58.
Qd6+ {[%clk 0:00:14.7]} 58... Kg7 {[%clk 0:00:21.1]} 59. Qd4+ {[%clk 0:00:14]}
59... Qf6 {[%clk 0:00:21.4]} 60. Qd7 {[%clk 0:00:14]} 60... h4 {[%clk
0:00:20.7]} 61. Qc7 {[%clk 0:00:12.6]} 61... Qe6 {[%clk 0:00:20.7]} 62. Qc3+
{[%clk 0:00:11.4]} 62... Kg6 {[%clk 0:00:21.1]} 63. Qd3+ {[%clk 0:00:10.2]}
63... f5 {[%clk 0:00:20.6]} 64. Qd8 {[%clk 0:00:09.9]} 64... Qe4+ {[%clk
0:00:19.9]} 65. Kg1 {[%clk 0:00:10]} 65... Qb1+ {[%clk 0:00:19.6]} 66. Kg2
{[%clk 0:00:09.6]} 66... Qe4+ {[%clk 0:00:19.6]} 67. Kg1 {[%clk 0:00:09.3]}
67... Qe6 {[%clk 0:00:19.8]} 68. Kg2 {[%clk 0:00:09.2]} 68... g4 {[%clk
0:00:20.1]} 69. Qxh4 {[%clk 0:00:07.2]} 69... Qe4+ {[%clk 0:00:19.5]} 70. Kg1
{[%clk 0:00:06.8]} 70... Qb1+ {[%clk 0:00:19.3]} 71. Kg2 {[%clk 0:00:06.5]}
71... Qb7+ {[%clk 0:00:19.3]} 72. Kg1 {[%clk 0:00:06.2]} 72... Qb1+ {[%clk
0:00:19.4]} 73. Kg2 {[%clk 0:00:06.4]} 73... Qe4+ {[%clk 0:00:19.5]} 74. Kg1
{[%clk 0:00:06.5]} 74... Qb1+ {[%clk 0:00:20]} 1/2-1/2

[Event "*** Titled Tuesday Blitz"]
[Site "Chess.com"]
[Date "2020.04.28"]
[Round "2"]
[White "dcann0n88"]
[Black "IngOscarArdila"]
[Result "1-0"]
[WhiteElo "2381"]
[BlackElo "2042"]
[TimeControl "180+1"]
[EndTime "10:19:30 PDT"]
[Termination "dcann0n88 won by resignation"]

1. e4 {[%clk 0:03:00.9]} 1... e5 {[%clk 0:02:58.1]} 2. Nf3 {[%clk 0:03:01]} 2...
Nf6 {[%clk 0:02:58]} 3. Nxe5 {[%clk 0:02:58.1]} 3... d6 {[%clk 0:02:58.2]} 4.
Nf3 {[%clk 0:02:58.3]} 4... Nxe4 {[%clk 0:02:58.7]} 5. Nc3 {[%clk 0:02:58.9]}
5... Nxc3 {[%clk 0:02:58.5]} 6. dxc3 {[%clk 0:02:59.8]} 6... Be7 {[%clk
0:02:59]} 7. Be3 {[%clk 0:03:00.4]} 7... O-O {[%clk 0:02:59.6]} 8. Qd2 {[%clk
0:03:01]} 8... Nd7 {[%clk 0:03:00.1]} 9. O-O-O {[%clk 0:03:01.5]} 9... Nf6
{[%clk 0:03:00.6]} 10. Bd3 {[%clk 0:02:58.6]} 10... c5 {[%clk 0:03:00.7]} 11. h3
{[%clk 0:02:24.4]} 11... Qa5 {[%clk 0:02:57.8]} 12. Kb1 {[%clk 0:02:22.6]} 12...
Be6 {[%clk 0:02:55.5]} 13. a3 {[%clk 0:02:21.5]} 13... b5 {[%clk 0:02:54]} 14.
Ng5 {[%clk 0:02:16]} 14... Rab8 {[%clk 0:02:51.1]} 15. Nxe6 {[%clk 0:02:08.6]}
15... fxe6 {[%clk 0:02:50.9]} 16. c4 {[%clk 0:02:01.3]} 16... b4 {[%clk
0:02:47.4]} 17. axb4 {[%clk 0:02:00.7]} 17... Rxb4 {[%clk 0:02:44.6]} 18. Qc3
{[%clk 0:01:57.5]} 18... Rfb8 {[%clk 0:02:43.6]} 19. Bc1 {[%clk 0:01:43.1]}
19... d5 {[%clk 0:02:33.9]} 20. Qe1 {[%clk 0:01:12.7]} 20... R8b6 {[%clk
0:02:29.5]} 21. cxd5 {[%clk 0:01:06.6]} 21... Nxd5 {[%clk 0:02:22.7]} 22. Bc4
{[%clk 0:01:00.1]} 22... Bf6 {[%clk 0:02:03.4]} 23. Rxd5 {[%clk 0:00:11.7]}
23... Rxb2+ {[%clk 0:01:47.1]} 24. Bxb2 {[%clk 0:00:12]} 24... Rxb2+ {[%clk
0:01:48]} 25. Kc1 {[%clk 0:00:12.6]} 25... Qa1+ {[%clk 0:01:48.2]} 26. Kd2
{[%clk 0:00:12.8]} 26... Qa5+ {[%clk 0:01:05.5]} 27. Ke3 {[%clk 0:00:07.3]}
27... Qxe1+ {[%clk 0:00:56.9]} 28. Rxe1 {[%clk 0:00:08.2]} 28... exd5 {[%clk
0:00:57.2]} 29. Bxd5+ {[%clk 0:00:08.9]} 29... Kf8 {[%clk 0:00:57.3]} 30. Kd2
{[%clk 0:00:05.1]} 30... Bd4 {[%clk 0:00:54.8]} 31. Bb3 {[%clk 0:00:04.7]} 31...
c4 {[%clk 0:00:52.9]} 32. Bxc4 {[%clk 0:00:04.4]} 32... a5 {[%clk 0:00:50.5]}
33. Bb3 {[%clk 0:00:04.3]} 33... Bf6 {[%clk 0:00:47.4]} 34. Re4 {[%clk
0:00:04.5]} 34... Bg5+ {[%clk 0:00:44.9]} 35. f4 {[%clk 0:00:03.7]} 35... Bf6
{[%clk 0:00:44.7]} 36. Ra4 {[%clk 0:00:03.8]} 36... Rb1 {[%clk 0:00:44]} 37.
Rxa5 {[%clk 0:00:03.7]} 37... Rf1 {[%clk 0:00:42.7]} 38. Ra8+ {[%clk 0:00:04.3]}
38... Ke7 {[%clk 0:00:42.3]} 39. Ke3 {[%clk 0:00:03.8]} 39... Re1+ {[%clk
0:00:41.4]} 40. Kf2 {[%clk 0:00:04.1]} 40... Rd1 {[%clk 0:00:39.7]} 41. Ra7+
{[%clk 0:00:03.7]} 41... Kd8 {[%clk 0:00:38.7]} 42. Ra6 {[%clk 0:00:04.4]} 42...
Kc7 {[%clk 0:00:37.1]} 43. Re6 {[%clk 0:00:05.2]} 43... Bd4+ {[%clk 0:00:35.6]}
44. Kf3 {[%clk 0:00:05.5]} 44... Rf1+ {[%clk 0:00:35.2]} 45. Ke4 {[%clk
0:00:05.5]} 45... Bf6 {[%clk 0:00:32.6]} 46. g4 {[%clk 0:00:05.9]} 46... Re1+
{[%clk 0:00:31.4]} 47. Kf5 {[%clk 0:00:06.1]} 47... Rh1 {[%clk 0:00:31.2]} 48.
g5 {[%clk 0:00:06.2]} 48... Bc3 {[%clk 0:00:29.6]} 49. Kg4 {[%clk 0:00:06.6]}
49... Rg1+ {[%clk 0:00:28.7]} 50. Kf3 {[%clk 0:00:07.2]} 50... Rh1 {[%clk
0:00:28.4]} 51. Re4 {[%clk 0:00:07.3]} 51... Bd2 {[%clk 0:00:22.5]} 52. Rc4+
{[%clk 0:00:07.4]} 52... Kb6 {[%clk 0:00:22.2]} 53. Kg2 {[%clk 0:00:08]} 53...
Re1 {[%clk 0:00:20.5]} 54. Rc8 {[%clk 0:00:08.5]} 54... Re2+ {[%clk 0:00:19.8]}
55. Kf3 {[%clk 0:00:08.6]} 55... Rh2 {[%clk 0:00:19.3]} 56. Kg4 {[%clk
0:00:08.9]} 56... Rg2+ {[%clk 0:00:19.2]} 57. Kf3 {[%clk 0:00:09.5]} 57... Rh2
{[%clk 0:00:19.2]} 58. Kg3 {[%clk 0:00:10.1]} 58... Re2 {[%clk 0:00:19]} 59. Rh8
{[%clk 0:00:10.2]} 59... Re3+ {[%clk 0:00:18.2]} 60. Kg4 {[%clk 0:00:10.1]}
60... Be1 {[%clk 0:00:16.8]} 61. Rxh7 {[%clk 0:00:10]} 61... g6 {[%clk
0:00:17.1]} 62. f5 {[%clk 0:00:08.7]} 62... Rg3+ {[%clk 0:00:16.2]} 63. Kf4
{[%clk 0:00:09.1]} 63... gxf5 {[%clk 0:00:13.7]} 64. Kxf5 {[%clk 0:00:10]} 64...
Bc3 {[%clk 0:00:12.8]} 65. Rh6+ {[%clk 0:00:10.1]} 65... Kb5 {[%clk 0:00:12.4]}
66. h4 {[%clk 0:00:11]} 66... Rf3+ {[%clk 0:00:12.4]} 67. Kg4 {[%clk 0:00:11.1]}
67... Rf1 {[%clk 0:00:12.2]} 68. Re6 {[%clk 0:00:11.3]} 68... Rg1+ {[%clk
0:00:12.6]} 69. Kh5 {[%clk 0:00:11.9]} 69... Rh1 {[%clk 0:00:13.1]} 70. Rd6
{[%clk 0:00:09.9]} 70... Be1 {[%clk 0:00:14]} 71. Rd5+ {[%clk 0:00:10]} 71...
Kc6 {[%clk 0:00:13.9]} 72. Rd4 {[%clk 0:00:10.4]} 72... Bf2 {[%clk 0:00:13.3]}
73. Bd5+ {[%clk 0:00:10.3]} 73... Kc5 {[%clk 0:00:12.5]} 74. Bxh1 {[%clk
0:00:11.2]} 74... Bxd4 {[%clk 0:00:12]} 75. Kg6 {[%clk 0:00:11.4]} 75... Kb4
{[%clk 0:00:12.9]} 76. h5 {[%clk 0:00:11.6]} 76... Kc3 {[%clk 0:00:13.8]} 77. h6
{[%clk 0:00:12.3]} 77... Kxc2 {[%clk 0:00:14.7]} 78. Kh7 {[%clk 0:00:12.4]}
78... Bh8 {[%clk 0:00:15.6]} 79. Kxh8 {[%clk 0:00:11.9]} 1-0